[Event "Early-Titled-Tuesday-Blitz-September-12-2023"]
[Site "Chess.com"]
[Date "2023.09.12"]
[Round "2"]
[White "RCone"]
[Black "Agibileg"]
[Result "0-1"]
[WhiteElo "2347"]
[BlackElo "2632"]
[TimeControl "180+1"]
[EndTime "8:16:21 PDT"]
[Termination "Agibileg won by resignation"]

1. e4 {[%clk 0:02:57.7]} 1... c5 {[%clk 0:02:55.9]} 2. Nc3 {[%clk 0:02:57.2]}
2... e6 {[%clk 0:02:54.4]} 3. Nf3 {[%clk 0:02:56.3]} 3... Nc6 {[%clk 0:02:53]}
4. d4 {[%clk 0:02:54.8]} 4... cxd4 {[%clk 0:02:53.9]} 5. Nxd4 {[%clk 0:02:55.1]}
5... Qc7 {[%clk 0:02:53]} 6. Be3 {[%clk 0:02:50.3]} 6... a6 {[%clk 0:02:52.3]}
7. Bd3 {[%clk 0:02:47.8]} 7... Nf6 {[%clk 0:02:48.6]} 8. O-O {[%clk 0:02:47.1]}
8... h5 {[%clk 0:02:48.2]} 9. Kh1 {[%clk 0:02:46.2]} 9... Ng4 {[%clk 0:02:39.3]}
10. Nf3 {[%clk 0:02:42.1]} 10... Nxe3 {[%clk 0:02:20]} 11. fxe3 {[%clk 0:02:43]}
11... Bc5 {[%clk 0:02:19.9]} 12. Qe2 {[%clk 0:02:35.7]} 12... b5 {[%clk
0:02:19.4]} 13. a3 {[%clk 0:02:11.7]} 13... Bb7 {[%clk 0:02:18.2]} 14. Qf2
{[%clk 0:02:08.9]} 14... f6 {[%clk 0:02:16.9]} 15. e5 {[%clk 0:02:00.2]} 15...
Nxe5 {[%clk 0:02:15.6]} 16. Nxe5 {[%clk 0:01:59.8]} 16... Qxe5 {[%clk
0:02:11.6]} 17. Bg6+ {[%clk 0:01:59.3]} 17... Ke7 {[%clk 0:02:04.5]} 18. Rae1
{[%clk 0:01:57.4]} 18... Bd6 {[%clk 0:02:00.8]} 19. Qh4 {[%clk 0:01:53.7]} 19...
Rh6 {[%clk 0:01:45.3]} 20. Bd3 {[%clk 0:01:53.1]} 20... g5 {[%clk 0:01:44.7]}
21. Qh3 {[%clk 0:01:53.2]} 21... h4 {[%clk 0:01:41.2]} 22. Be2 {[%clk
0:01:44.9]} 22... f5 {[%clk 0:01:25.5]} 23. e4 {[%clk 0:01:14.6]} 23... g4
{[%clk 0:01:23.4]} 24. Bxg4 {[%clk 0:01:09.5]} 24... fxg4 {[%clk 0:01:23.4]} 25.
Nd5+ {[%clk 0:01:02.9]} 25... exd5 {[%clk 0:01:13.8]} 26. exd5 {[%clk
0:00:48.7]} 26... gxh3 {[%clk 0:01:12.6]} 27. Rxe5+ {[%clk 0:00:44.9]} 27...
Bxe5 {[%clk 0:01:13.5]} 28. Re1 {[%clk 0:00:39]} 28... Kd6 {[%clk 0:01:12.4]}
29. gxh3 {[%clk 0:00:38.4]} 29... Rg6 {[%clk 0:01:11]} 0-1

[Event "Early-Titled-Tuesday-Blitz-September-12-2023"]
[Site "Chess.com"]
[Date "2023.09.12"]
[Round "2"]
[White "OparinGrigoriy"]
[Black "Casper"]
[Result "1-0"]
[WhiteElo "3022"]
[BlackElo "2433"]
[TimeControl "180+1"]
[EndTime "8:16:25 PDT"]
[Termination "OparinGrigoriy won on time"]

1. Nf3 {[%clk 0:03:00.9]} 1... Nf6 {[%clk 0:02:58]} 2. c4 {[%clk 0:03:01.8]}
2... g6 {[%clk 0:02:58.2]} 3. Nc3 {[%clk 0:03:02.3]} 3... Bg7 {[%clk 0:02:59.1]}
4. g3 {[%clk 0:03:02.7]} 4... O-O {[%clk 0:02:59.8]} 5. Bg2 {[%clk 0:03:03.4]}
5... Nc6 {[%clk 0:02:59.5]} 6. d4 {[%clk 0:03:03.6]} 6... d6 {[%clk 0:02:59.8]}
7. O-O {[%clk 0:03:03.6]} 7... e5 {[%clk 0:02:59.5]} 8. dxe5 {[%clk 0:03:03.8]}
8... dxe5 {[%clk 0:03:00.4]} 9. Bg5 {[%clk 0:03:02.2]} 9... Be6 {[%clk 0:02:57]}
10. Qa4 {[%clk 0:03:01.8]} 10... Qe8 {[%clk 0:02:50.1]} 11. Rad1 {[%clk
0:02:52.6]} 11... Nd7 {[%clk 0:02:10.8]} 12. Nd5 {[%clk 0:02:47.3]} 12... Nb6
{[%clk 0:01:41]} 13. Qc2 {[%clk 0:02:39.9]} 13... Bxd5 {[%clk 0:01:33.1]} 14.
cxd5 {[%clk 0:02:40.8]} 14... Nb4 {[%clk 0:01:33.3]} 15. Qb3 {[%clk 0:02:41.1]}
15... a5 {[%clk 0:01:12.9]} 16. Nd2 {[%clk 0:02:35.9]} 16... Qa4 {[%clk
0:00:40.8]} 17. a3 {[%clk 0:02:35.7]} 17... Nc2 {[%clk 0:00:29.8]} 18. e3 {[%clk
0:02:01.8]} 18... f6 {[%clk 0:00:29.7]} 19. Rc1 {[%clk 0:02:00.5]} 19... fxg5
{[%clk 0:00:16.3]} 20. Rxc2 {[%clk 0:01:58.9]} 20... Rf7 {[%clk 0:00:10.4]} 21.
Rfc1 {[%clk 0:01:52.2]} 21... Raf8 {[%clk 0:00:09.1]} 22. Qxa4 {[%clk
0:01:52.5]} 22... Nxa4 {[%clk 0:00:09]} 23. Ne4 {[%clk 0:01:53.4]} 23... h6
{[%clk 0:00:04.7]} 24. Rxc7 {[%clk 0:01:48.8]} 24... Nxb2 {[%clk 0:00:04.7]} 25.
d6 {[%clk 0:01:48]} 25... Nd3 {[%clk 0:00:03.7]} 26. Rxf7 {[%clk 0:01:45.5]}
26... Nxc1 {[%clk 0:00:03.3]} 27. Rxb7 {[%clk 0:01:44.4]} 27... Nd3 {[%clk
0:00:02.1]} 28. Bh3 {[%clk 0:01:40.7]} 28... h5 {[%clk 0:00:01.5]} 29. Be6+
{[%clk 0:01:39]} 29... Kh8 {[%clk 0:00:01]} 30. d7 {[%clk 0:01:38.3]} 1-0

[Event "Early-Titled-Tuesday-Blitz-September-12-2023"]
[Site "Chess.com"]
[Date "2023.09.12"]
[Round "2"]
[White "F-Ghaith2021"]
[Black "lioni26"]
[Result "1-0"]
[WhiteElo "2280"]
[BlackElo "2533"]
[TimeControl "180+1"]
[EndTime "8:16:29 PDT"]
[Termination "F-Ghaith2021 won by resignation"]

1. e4 {[%clk 0:02:59.9]} 1... c5 {[%clk 0:02:59.6]} 2. Nf3 {[%clk 0:02:59.7]}
2... d6 {[%clk 0:03:00.2]} 3. d4 {[%clk 0:02:59.1]} 3... cxd4 {[%clk 0:03:00.5]}
4. Nxd4 {[%clk 0:03:00]} 4... Nf6 {[%clk 0:03:00.8]} 5. Nc3 {[%clk 0:02:59.6]}
5... g6 {[%clk 0:03:01.4]} 6. f3 {[%clk 0:02:58.2]} 6... Bg7 {[%clk 0:03:01.7]}
7. Be3 {[%clk 0:02:56.8]} 7... O-O {[%clk 0:03:02.2]} 8. Qd2 {[%clk 0:02:57.5]}
8... Nc6 {[%clk 0:03:02.5]} 9. Bc4 {[%clk 0:02:57.2]} 9... Bd7 {[%clk
0:03:02.3]} 10. Bb3 {[%clk 0:02:57.4]} 10... Ne5 {[%clk 0:03:02.9]} 11. O-O-O
{[%clk 0:02:55.3]} 11... b5 {[%clk 0:03:03.1]} 12. Ncxb5 {[%clk 0:02:28.3]}
12... Qb8 {[%clk 0:03:00.8]} 13. Kb1 {[%clk 0:02:21.3]} 13... Bxb5 {[%clk
0:02:59.6]} 14. h4 {[%clk 0:02:13.3]} 14... a5 {[%clk 0:02:55.6]} 15. f4 {[%clk
0:01:59.8]} 15... Nxe4 {[%clk 0:02:51.8]} 16. Qe1 {[%clk 0:01:58.2]} 16... Nc4
{[%clk 0:02:48.8]} 17. h5 {[%clk 0:01:42.1]} 17... a4 {[%clk 0:02:43.8]} 18.
Bxc4 {[%clk 0:01:38.8]} 18... Bxc4 {[%clk 0:02:43.7]} 19. hxg6 {[%clk
0:01:37.2]} 19... hxg6 {[%clk 0:02:43.5]} 20. f5 {[%clk 0:01:28.6]} 20... e5
{[%clk 0:02:20.6]} 21. Qh4 {[%clk 0:01:26.7]} 21... Nf6 {[%clk 0:02:01.9]} 22.
Bg5 {[%clk 0:01:11.9]} 22... Nh5 {[%clk 0:01:51.1]} 23. Nc6 {[%clk 0:01:03.3]}
23... Qb7 {[%clk 0:01:26.7]} 24. Ne7+ {[%clk 0:01:01.6]} 24... Kh7 {[%clk
0:01:04]} 25. Qxh5+ {[%clk 0:00:48.4]} 1-0

[Event "Early-Titled-Tuesday-Blitz-September-12-2023"]
[Site "Chess.com"]
[Date "2023.09.12"]
[Round "2"]
[White "DopplerCharlotteDeWitte"]
[Black "Gogolev_Artemy"]
[Result "1-0"]
[WhiteElo "2670"]
[BlackElo "2412"]
[TimeControl "180+1"]
[EndTime "8:16:30 PDT"]
[Termination "DopplerCharlotteDeWitte won by resignation"]

1. e4 {[%clk 0:03:00.9]} 1... c6 {[%clk 0:03:00]} 2. d4 {[%clk 0:03:00.6]} 2...
d5 {[%clk 0:02:59.9]} 3. exd5 {[%clk 0:03:01.5]} 3... cxd5 {[%clk 0:02:59.8]} 4.
Bd3 {[%clk 0:03:02.2]} 4... Nf6 {[%clk 0:02:58.4]} 5. h3 {[%clk 0:03:00.9]} 5...
Qc7 {[%clk 0:02:55]} 6. Nc3 {[%clk 0:02:46.6]} 6... a6 {[%clk 0:02:52.3]} 7.
Nce2 {[%clk 0:02:43.7]} 7... Nc6 {[%clk 0:02:50.1]} 8. c3 {[%clk 0:02:43.8]}
8... e6 {[%clk 0:02:48]} 9. Bf4 {[%clk 0:02:41.2]} 9... Bd6 {[%clk 0:02:46.4]}
10. Bxd6 {[%clk 0:02:40.3]} 10... Qxd6 {[%clk 0:02:47.3]} 11. Nf3 {[%clk
0:02:40.9]} 11... O-O {[%clk 0:02:23.3]} 12. O-O {[%clk 0:02:39.4]} 12... b5
{[%clk 0:02:23.8]} 13. a3 {[%clk 0:02:34.1]} 13... Rb8 {[%clk 0:02:18]} 14. Re1
{[%clk 0:02:28.3]} 14... a5 {[%clk 0:02:17.6]} 15. b4 {[%clk 0:02:22.1]} 15...
a4 {[%clk 0:02:14.4]} 16. Rc1 {[%clk 0:01:48.4]} 16... Qc7 {[%clk 0:01:36.2]}
17. Ng3 {[%clk 0:01:45.2]} 17... Ba6 {[%clk 0:01:14.6]} 18. Re3 {[%clk
0:01:32.3]} 18... Rfc8 {[%clk 0:01:02.3]} 19. Rc2 {[%clk 0:01:31.6]} 19... Qb6
{[%clk 0:00:47.5]} 20. Ne5 {[%clk 0:01:11.6]} 20... Ne7 {[%clk 0:00:46.2]} 21.
Nh5 {[%clk 0:01:08.9]} 21... Nxh5 {[%clk 0:00:15.8]} 22. Bxh7+ {[%clk
0:01:08.3]} 22... Kxh7 {[%clk 0:00:13.1]} 23. Qxh5+ {[%clk 0:01:08.5]} 1-0

[Event "Early-Titled-Tuesday-Blitz-September-12-2023"]
[Site "Chess.com"]
[Date "2023.09.12"]
[Round "2"]
[White "Itk04"]
[Black "kacprekt"]
[Result "1-0"]
[WhiteElo "2738"]
[BlackElo "2431"]
[TimeControl "180+1"]
[EndTime "8:16:32 PDT"]
[Termination "Itk04 won by resignation"]

1. d4 {[%clk 0:03:00.9]} 1... Nf6 {[%clk 0:02:58.7]} 2. c4 {[%clk 0:03:00]} 2...
e6 {[%clk 0:02:58.5]} 3. g3 {[%clk 0:02:57.9]} 3... c5 {[%clk 0:02:57.1]} 4. d5
{[%clk 0:02:57.6]} 4... exd5 {[%clk 0:02:56.8]} 5. cxd5 {[%clk 0:02:58.5]} 5...
d6 {[%clk 0:02:54.3]} 6. Nc3 {[%clk 0:02:59.1]} 6... g6 {[%clk 0:02:53.4]} 7.
Bg2 {[%clk 0:02:59.8]} 7... Bg7 {[%clk 0:02:53.9]} 8. Nf3 {[%clk 0:03:00.7]}
8... O-O {[%clk 0:02:54.3]} 9. O-O {[%clk 0:03:01.6]} 9... Re8 {[%clk
0:02:54.6]} 10. Re1 {[%clk 0:02:59.3]} 10... Bf5 {[%clk 0:02:54.1]} 11. Nd2
{[%clk 0:02:50.2]} 11... a6 {[%clk 0:02:41.4]} 12. a4 {[%clk 0:02:47.6]} 12...
Qc8 {[%clk 0:02:27.9]} 13. Nc4 {[%clk 0:02:40.8]} 13... Qc7 {[%clk 0:02:22.1]}
14. Bf4 {[%clk 0:02:34.2]} 14... Rd8 {[%clk 0:02:21.4]} 15. a5 {[%clk
0:02:25.1]} 15... Nh5 {[%clk 0:02:14.3]} 16. Bg5 {[%clk 0:02:22.6]} 16... Re8
{[%clk 0:02:08.6]} 17. e4 {[%clk 0:02:15.7]} 17... Bd7 {[%clk 0:02:02.6]} 18.
Bf3 {[%clk 0:02:12.3]} 18... Nf6 {[%clk 0:01:58.2]} 19. Bf4 {[%clk 0:02:12.3]}
19... Bf8 {[%clk 0:01:48.3]} 20. e5 {[%clk 0:02:01.7]} 20... dxe5 {[%clk
0:01:48.5]} 21. Rxe5 {[%clk 0:01:56.2]} 21... Rxe5 {[%clk 0:01:44.7]} 22. Bxe5
{[%clk 0:01:57.1]} 22... Qd8 {[%clk 0:01:42.4]} 23. Nb6 {[%clk 0:01:55.8]} 23...
Ra7 {[%clk 0:01:42.4]} 24. Qd2 {[%clk 0:01:49.6]} 24... Bb5 {[%clk 0:01:26.7]}
25. Qg5 {[%clk 0:01:10.8]} 25... Bg7 {[%clk 0:01:06.5]} 26. Ne4 {[%clk
0:01:07.3]} 26... h6 {[%clk 0:00:56.6]} 27. Nxf6+ {[%clk 0:01:02.3]} 27... Kh8
{[%clk 0:00:56]} 28. Qf4 {[%clk 0:00:58.6]} 28... g5 {[%clk 0:00:42.9]} 29. Qf5
{[%clk 0:00:58.7]} 1-0

[Event "Early-Titled-Tuesday-Blitz-September-12-2023"]
[Site "Chess.com"]
[Date "2023.09.12"]
[Round "2"]
[White "amintabatabaei"]
[Black "Diaschess88"]
[Result "1-0"]
[WhiteElo "3047"]
[BlackElo "2637"]
[TimeControl "180+1"]
[EndTime "8:16:34 PDT"]
[Termination "amintabatabaei won by resignation"]

1. e4 {[%clk 0:03:00.9]} 1... c5 {[%clk 0:02:59.4]} 2. Nf3 {[%clk 0:03:00.4]}
2... Nc6 {[%clk 0:02:59.8]} 3. Bb5 {[%clk 0:02:58.7]} 3... e6 {[%clk 0:02:59.9]}
4. Bxc6 {[%clk 0:02:57.9]} 4... bxc6 {[%clk 0:03:00.8]} 5. b3 {[%clk 0:02:58.6]}
5... f6 {[%clk 0:03:00.1]} 6. O-O {[%clk 0:02:49.2]} 6... d5 {[%clk 0:02:49]} 7.
e5 {[%clk 0:02:45.8]} 7... Be7 {[%clk 0:02:42.5]} 8. d3 {[%clk 0:02:43.3]} 8...
f5 {[%clk 0:02:34.9]} 9. c4 {[%clk 0:02:41.4]} 9... Kf8 {[%clk 0:02:26.5]} 10.
Nc3 {[%clk 0:02:40.5]} 10... g5 {[%clk 0:02:20]} 11. Na4 {[%clk 0:02:40.2]}
11... g4 {[%clk 0:02:20.4]} 12. Nd2 {[%clk 0:02:38.3]} 12... h5 {[%clk
0:02:11.9]} 13. Ba3 {[%clk 0:02:38.3]} 13... Qa5 {[%clk 0:02:11.9]} 14. Rc1
{[%clk 0:02:37.1]} 14... d4 {[%clk 0:02:08.1]} 15. Qe1 {[%clk 0:02:31]} 15... h4
{[%clk 0:02:02.8]} 16. Nb1 {[%clk 0:02:27.1]} 16... Qd8 {[%clk 0:01:56.2]} 17.
Bxc5 {[%clk 0:02:23.2]} 17... Bxc5 {[%clk 0:01:46.2]} 18. Nxc5 {[%clk
0:02:24.1]} 18... Nh6 {[%clk 0:01:46.2]} 19. b4 {[%clk 0:02:22.1]} 19... Nf7
{[%clk 0:01:42.2]} 20. Nd2 {[%clk 0:02:20.4]} 20... Kg7 {[%clk 0:01:38.2]} 21.
f4 {[%clk 0:02:18.4]} 21... a5 {[%clk 0:01:32.9]} 22. b5 {[%clk 0:02:08.6]}
22... cxb5 {[%clk 0:01:33.4]} 23. cxb5 {[%clk 0:02:09.5]} 23... h3 {[%clk
0:01:34]} 24. Qg3 {[%clk 0:01:52.9]} 24... Rb8 {[%clk 0:01:30.9]} 25. a4 {[%clk
0:01:51.2]} 25... Qd5 {[%clk 0:01:29.1]} 26. Ndb3 {[%clk 0:01:46.6]} 26... Bb7
{[%clk 0:00:42]} 27. Nxb7 {[%clk 0:01:45.4]} 27... hxg2 {[%clk 0:00:35]} 28.
Qxg2 {[%clk 0:01:40.9]} 28... Qxg2+ {[%clk 0:00:23.8]} 29. Kxg2 {[%clk
0:01:41.8]} 29... Rxb7 {[%clk 0:00:24.7]} 30. Nxd4 {[%clk 0:01:39.1]} 30... Nd8
{[%clk 0:00:20.3]} 31. Rc8 {[%clk 0:01:33.8]} 31... Rd7 {[%clk 0:00:20.4]} 32.
Rxd8 {[%clk 0:01:33.1]} 1-0

[Event "Early-Titled-Tuesday-Blitz-September-12-2023"]
[Site "Chess.com"]
[Date "2023.09.12"]
[Round "2"]
[White "pasteta13"]
[Black "Aradhya2000"]
[Result "0-1"]
[WhiteElo "2410"]
[BlackElo "2695"]
[TimeControl "180+1"]
[EndTime "8:16:44 PDT"]
[Termination "Aradhya2000 won by resignation"]

1. e4 {[%clk 0:03:00.9]} 1... e5 {[%clk 0:02:59.8]} 2. Nf3 {[%clk 0:03:00.9]}
2... Nc6 {[%clk 0:02:59.6]} 3. d4 {[%clk 0:03:01.6]} 3... exd4 {[%clk
0:02:59.5]} 4. Bc4 {[%clk 0:03:02.3]} 4... Nf6 {[%clk 0:02:59]} 5. O-O {[%clk
0:03:02.6]} 5... Nxe4 {[%clk 0:02:59]} 6. Re1 {[%clk 0:03:03.1]} 6... d5 {[%clk
0:02:59]} 7. Bxd5 {[%clk 0:03:03.1]} 7... Qxd5 {[%clk 0:02:59.9]} 8. Nc3 {[%clk
0:03:03.1]} 8... Qh5 {[%clk 0:02:59.9]} 9. Nxe4 {[%clk 0:03:02.9]} 9... Be6
{[%clk 0:02:57.3]} 10. Nxd4 {[%clk 0:03:03.2]} 10... Qxd1 {[%clk 0:02:55.8]} 11.
Rxd1 {[%clk 0:03:03.1]} 11... O-O-O {[%clk 0:02:27.4]} 12. Be3 {[%clk
0:03:01.2]} 12... Nxd4 {[%clk 0:02:28]} 13. Rxd4 {[%clk 0:02:50.3]} 13... Rxd4
{[%clk 0:02:27.2]} 14. Bxd4 {[%clk 0:02:50.3]} 14... f6 {[%clk 0:02:27.4]} 15.
Re1 {[%clk 0:02:44.1]} 15... Bf7 {[%clk 0:02:26.3]} 16. f3 {[%clk 0:02:31.7]}
16... b6 {[%clk 0:02:19.9]} 17. a3 {[%clk 0:02:24.4]} 17... a5 {[%clk
0:02:18.9]} 18. Kf2 {[%clk 0:02:23]} 18... h5 {[%clk 0:02:12.8]} 19. h4 {[%clk
0:02:21.6]} 19... Kd7 {[%clk 0:02:09.5]} 20. Bc3 {[%clk 0:01:33.8]} 20... Be7
{[%clk 0:02:05.1]} 21. Rd1+ {[%clk 0:01:32]} 21... Kc6 {[%clk 0:02:04.4]} 22.
Re1 {[%clk 0:01:31.8]} 22... Re8 {[%clk 0:02:03.2]} 23. g4 {[%clk 0:01:29.2]}
23... Bf8 {[%clk 0:01:24.4]} 24. Bd4 {[%clk 0:01:05.1]} 24... hxg4 {[%clk
0:01:21.6]} 25. fxg4 {[%clk 0:01:05.4]} 25... Kd5 {[%clk 0:01:21.6]} 26. Nxf6+
{[%clk 0:00:43.8]} 26... gxf6 {[%clk 0:01:20.4]} 27. Rxe8 {[%clk 0:00:43.3]}
27... Bxe8 {[%clk 0:01:21]} 28. Bxf6 {[%clk 0:00:44.2]} 28... Bg6 {[%clk
0:01:19.1]} 29. h5 {[%clk 0:00:35.6]} 29... Bxc2 {[%clk 0:01:18.7]} 30. g5
{[%clk 0:00:35.9]} 30... Bd1 {[%clk 0:01:08.3]} 31. g6 {[%clk 0:00:30.1]} 31...
Bxh5 {[%clk 0:01:07.4]} 32. g7 {[%clk 0:00:30.6]} 32... Bc5+ {[%clk 0:01:07.6]}
0-1

[Event "Early-Titled-Tuesday-Blitz-September-12-2023"]
[Site "Chess.com"]
[Date "2023.09.12"]
[Round "2"]
[White "AvitalBor"]
[Black "CrushingKings"]
[Result "1-0"]
[WhiteElo "2818"]
[BlackElo "2548"]
[TimeControl "180+1"]
[EndTime "8:16:49 PDT"]
[Termination "AvitalBor won by resignation"]

1. e4 {[%clk 0:03:00.9]} 1... g6 {[%clk 0:02:59.3]} 2. h4 {[%clk 0:03:00.1]}
2... Bg7 {[%clk 0:02:59.1]} 3. h5 {[%clk 0:03:00.6]} 3... c5 {[%clk 0:02:59.5]}
4. Nc3 {[%clk 0:02:57.4]} 4... Nc6 {[%clk 0:02:59.6]} 5. Nf3 {[%clk 0:02:55.3]}
5... e6 {[%clk 0:02:59.2]} 6. d3 {[%clk 0:02:53.3]} 6... Nge7 {[%clk 0:02:55.3]}
7. h6 {[%clk 0:02:48.4]} 7... Bf6 {[%clk 0:02:55.3]} 8. e5 {[%clk 0:02:48]} 8...
Nxe5 {[%clk 0:02:54.8]} 9. Ne4 {[%clk 0:02:48.1]} 9... Nxf3+ {[%clk 0:02:53.8]}
10. Qxf3 {[%clk 0:02:49]} 10... Nd5 {[%clk 0:02:46.9]} 11. c4 {[%clk 0:02:44.4]}
11... Be5 {[%clk 0:01:12.8]} 12. cxd5 {[%clk 0:02:40.9]} 12... exd5 {[%clk
0:01:13.7]} 13. Bg5 {[%clk 0:02:15.9]} 13... Qa5+ {[%clk 0:01:05.3]} 14. Bd2
{[%clk 0:02:15.1]} 14... Qb6 {[%clk 0:01:04]} 15. Ng5 {[%clk 0:02:14.1]} 15...
O-O {[%clk 0:01:03.4]} 16. Be2 {[%clk 0:02:06.8]} 16... Qxb2 {[%clk 0:01:00.6]}
17. Rd1 {[%clk 0:02:04.4]} 17... Bc3 {[%clk 0:00:56.8]} 18. Qxd5 {[%clk
0:02:00.3]} 18... d6 {[%clk 0:00:36.7]} 19. Ne4 {[%clk 0:01:56.7]} 19... Be5
{[%clk 0:00:22.4]} 20. Qb3 {[%clk 0:01:50.7]} 20... Qxb3 {[%clk 0:00:21.8]} 21.
axb3 {[%clk 0:01:51.6]} 21... Be6 {[%clk 0:00:22.2]} 22. f4 {[%clk 0:01:47.9]}
22... Bd4 {[%clk 0:00:19.9]} 23. Nxd6 {[%clk 0:01:47.1]} 23... Bxb3 {[%clk
0:00:17.1]} 24. Rb1 {[%clk 0:01:47.3]} 24... Bd5 {[%clk 0:00:17.5]} 25. Bf3
{[%clk 0:01:42.1]} 25... Bxf3 {[%clk 0:00:17.2]} 26. gxf3 {[%clk 0:01:43]} 26...
b6 {[%clk 0:00:17.8]} 27. f5 {[%clk 0:01:42.9]} 27... Rfd8 {[%clk 0:00:11]} 28.
Nb5 {[%clk 0:01:40.4]} 28... Be5 {[%clk 0:00:09.4]} 29. fxg6 {[%clk 0:01:39.6]}
29... fxg6 {[%clk 0:00:05.7]} 30. f4 {[%clk 0:01:39.9]} 30... Bf6 {[%clk
0:00:04.8]} 31. Ke2 {[%clk 0:01:38.1]} 31... a6 {[%clk 0:00:05.1]} 32. Nc3
{[%clk 0:01:38.3]} 32... b5 {[%clk 0:00:05.2]} 33. Ne4 {[%clk 0:01:38.5]} 33...
Bd4 {[%clk 0:00:05.6]} 34. Be3 {[%clk 0:01:38.4]} 34... c4 {[%clk 0:00:05.2]}
35. dxc4 {[%clk 0:01:37.4]} 35... bxc4 {[%clk 0:00:04]} 36. Rhc1 {[%clk
0:01:37.2]} 36... Bxe3 {[%clk 0:00:04.2]} 37. Kxe3 {[%clk 0:01:37.1]} 37... Rd3+
{[%clk 0:00:05.1]} 38. Ke2 {[%clk 0:01:36.5]} 38... Rd4 {[%clk 0:00:04.7]} 39.
Kf3 {[%clk 0:01:35.6]} 39... Re8 {[%clk 0:00:05.3]} 40. Nf6+ {[%clk 0:01:35.3]}
1-0

[Event "Early-Titled-Tuesday-Blitz-September-12-2023"]
[Site "Chess.com"]
[Date "2023.09.12"]
[Round "2"]
[White "Road2GM3000"]
[Black "Herman-NY"]
[Result "0-1"]
[WhiteElo "2336"]
[BlackElo "2534"]
[TimeControl "180+1"]
[EndTime "8:16:50 PDT"]
[Termination "Herman-NY won by resignation"]

1. d4 {[%clk 0:02:56.9]} 1... Nf6 {[%clk 0:03:00.1]} 2. c3 {[%clk 0:02:57.4]}
2... g6 {[%clk 0:03:00.3]} 3. Bf4 {[%clk 0:02:58]} 3... Bg7 {[%clk 0:03:00.7]}
4. e3 {[%clk 0:02:58.8]} 4... O-O {[%clk 0:03:01]} 5. Bd3 {[%clk 0:02:59.6]}
5... d6 {[%clk 0:03:01.7]} 6. Nf3 {[%clk 0:03:00.3]} 6... Nfd7 {[%clk
0:03:01.5]} 7. Bg3 {[%clk 0:03:00.2]} 7... e5 {[%clk 0:03:00.9]} 8. Nbd2 {[%clk
0:03:01]} 8... a5 {[%clk 0:03:00.8]} 9. Qc2 {[%clk 0:03:01.3]} 9... a4 {[%clk
0:02:59.5]} 10. h4 {[%clk 0:03:01.8]} 10... h6 {[%clk 0:02:57.5]} 11. h5 {[%clk
0:03:02]} 11... g5 {[%clk 0:02:58]} 12. O-O-O {[%clk 0:02:46.8]} 12... a3 {[%clk
0:02:50.4]} 13. b3 {[%clk 0:02:46.8]} 13... Nc6 {[%clk 0:02:45.8]} 14. Nc4
{[%clk 0:02:45.4]} 14... Qe7 {[%clk 0:02:45.2]} 15. dxe5 {[%clk 0:02:44.7]}
15... Ncxe5 {[%clk 0:02:36.1]} 16. Nfxe5 {[%clk 0:02:44.9]} 16... Nxe5 {[%clk
0:02:35.5]} 17. Nxe5 {[%clk 0:02:44.1]} 17... Bxe5 {[%clk 0:02:34.3]} 18. f4
{[%clk 0:02:44.1]} 18... Bg7 {[%clk 0:02:28.1]} 19. Rde1 {[%clk 0:02:43]} 19...
Qf6 {[%clk 0:01:45.6]} 20. fxg5 {[%clk 0:02:41.7]} 20... Qxg5 {[%clk 0:01:40.1]}
21. Bf4 {[%clk 0:02:41.2]} 21... Qf6 {[%clk 0:01:40.3]} 22. Ref1 {[%clk
0:02:29.2]} 22... Ra5 {[%clk 0:01:27.6]} 23. Rf3 {[%clk 0:02:11.3]} 23... Rc5
{[%clk 0:01:23.3]} 24. c4 {[%clk 0:02:08.9]} 24... b5 {[%clk 0:00:56.1]} 25. Rg3
{[%clk 0:01:57.1]} 25... bxc4 {[%clk 0:00:52.6]} 26. bxc4 {[%clk 0:01:58]} 26...
Be6 {[%clk 0:00:45.2]} 27. Kd2 {[%clk 0:01:56.1]} 27... Rb8 {[%clk 0:00:43.9]}
28. Rb1 {[%clk 0:01:49.7]} 28... Rb2 {[%clk 0:00:32.1]} 29. Rxb2 {[%clk
0:01:48.8]} 29... axb2 {[%clk 0:00:29.1]} 30. Qb3 {[%clk 0:01:49.3]} 30... Bf5
{[%clk 0:00:23.2]} 31. Bxf5 {[%clk 0:01:40]} 31... Rxf5 {[%clk 0:00:19.7]} 32.
Kc2 {[%clk 0:01:21.9]} 32... Rxh5 {[%clk 0:00:09.9]} 33. a4 {[%clk 0:01:16.9]}
33... Qf5+ {[%clk 0:00:09]} 34. Kd2 {[%clk 0:01:12.5]} 34... b1=Q {[%clk
0:00:09]} 0-1

[Event "Early-Titled-Tuesday-Blitz-September-12-2023"]
[Site "Chess.com"]
[Date "2023.09.12"]
[Round "2"]
[White "platy3"]
[Black "Mikhail_Golubev"]
[Result "1-0"]
[WhiteElo "2919"]
[BlackElo "2588"]
[TimeControl "180+1"]
[EndTime "8:16:58 PDT"]
[Termination "platy3 won on time"]

1. e4 {[%clk 0:03:00.9]} 1... c5 {[%clk 0:02:59.3]} 2. Nf3 {[%clk 0:02:59.9]}
2... d6 {[%clk 0:02:58.8]} 3. d4 {[%clk 0:02:59.7]} 3... cxd4 {[%clk 0:02:57.8]}
4. Nxd4 {[%clk 0:03:00.6]} 4... Nf6 {[%clk 0:02:58]} 5. Nc3 {[%clk 0:03:01.1]}
5... g6 {[%clk 0:02:58.5]} 6. Be3 {[%clk 0:03:00.3]} 6... Bg7 {[%clk 0:02:58.3]}
7. f3 {[%clk 0:03:01]} 7... O-O {[%clk 0:02:58.2]} 8. Qd2 {[%clk 0:03:01.7]}
8... Nc6 {[%clk 0:02:58.4]} 9. O-O-O {[%clk 0:03:02.4]} 9... d5 {[%clk
0:02:58.6]} 10. Qe1 {[%clk 0:03:02.9]} 10... e5 {[%clk 0:02:57.4]} 11. Nxc6
{[%clk 0:03:02.4]} 11... bxc6 {[%clk 0:02:58.3]} 12. exd5 {[%clk 0:03:03]} 12...
Nxd5 {[%clk 0:02:58.5]} 13. Bc4 {[%clk 0:03:03.6]} 13... Be6 {[%clk 0:02:57.8]}
14. Kb1 {[%clk 0:03:02.9]} 14... Re8 {[%clk 0:02:55.1]} 15. Ne4 {[%clk
0:02:58.5]} 15... f5 {[%clk 0:02:53.1]} 16. Ng5 {[%clk 0:02:53.9]} 16... Bc8
{[%clk 0:02:52.4]} 17. h4 {[%clk 0:02:33.5]} 17... a5 {[%clk 0:02:32.9]} 18. h5
{[%clk 0:02:31.7]} 18... f4 {[%clk 0:02:26.8]} 19. Bxf4 {[%clk 0:01:36.7]} 19...
exf4 {[%clk 0:02:11.5]} 20. Rxd5 {[%clk 0:01:35.9]} 20... Rxe1+ {[%clk
0:00:26.2]} 21. Rd1+ {[%clk 0:01:33.2]} 21... Be6 {[%clk 0:00:01.7]} 22. Bxe6+
{[%clk 0:01:26.7]} 22... Rxe6 {[%clk 0:00:02.4]} 23. Rxd8+ {[%clk 0:01:26.8]}
23... Rxd8 {[%clk 0:00:02.4]} 24. Nxe6 {[%clk 0:01:26.9]} 24... Rb8 {[%clk
0:00:02]} 25. hxg6 {[%clk 0:01:17.7]} 25... hxg6 {[%clk 0:00:01.4]} 26. b3
{[%clk 0:01:09.8]} 26... Be5 {[%clk 0:00:01.4]} 27. Re1 {[%clk 0:01:09.6]} 27...
Bd6 {[%clk 0:00:01.7]} 28. Nd4 {[%clk 0:01:06.2]} 28... c5 {[%clk 0:00:01.7]}
29. Re6 {[%clk 0:01:03.5]} 1-0